bitfinex-derivatives/quotes_ETHF0:USTF0_20251203
["timestamp","ask_amount","ask_price","bid_price","bid_amount"]
[1764799167564,40.8,3169.3,3168.9,3.2078]
[1764799168968,7.3078,3169.0,3168.9,3.2078]
[1764799169272,40.8,3169.3,3168.9,3.2078]
[1764799170066,41.45,3169.3,3168.9,3.2078]
[1764799170263,0.65,3169.3,3169.2,15.1816]
[1764799170470,0.65,3169.3,3169.2,19.6243]
[1764799170972,14.73,3169.0,3168.9,3.2078]
[1764799171180,14.73,3168.9,3168.8,0.00473126]
[1764799171369,14.73,3168.9,3168.1,3.21125683]
[1764799171870,40.8,3168.8,3168.1,3.21125683]
[1764799172074,40.8,3168.8,3168.1,3.36905683]
[1764799172276,40.80473126,3168.8,3168.1,3.37378809]
[1764799172876,40.80473126,3168.8,3168.3,0.1578]
[1764799173170,40.80473126,3168.8,3168.7,7.5575]
[1764799173364,0.65,3169.3,3168.7,15.1816]
[1764799173566,7.3623,3169.1,3169.0,3.2078]
[1764799173762,48.1623,3169.1,3169.0,3.2078]
[1764799174069,14.4637,3168.7,3168.6,3.2078]
[1764799174975,7.1014,3168.3,3168.2,3.2078]
[1764799175279,14.4637,3168.3,3168.2,3.2078]
[1764799175573,0.00473126,3169.0,3168.2,3.2078]
[1764799175574,0.00473126,3169.0,3168.2,10.3763]
[1764799175962,0.00473126,3169.0,3168.2,10.5341]
[1764799176271,7.3623,3168.8,3168.7,3.2078]
[1764799176464,14.4637,3168.8,3168.7,3.2078]
[1764799176667,0.00473126,3169.0,3168.7,3.2078]
[1764799178676,0.00473126,3169.0,3168.9,14.673]
[1764799178866,0.65,3169.3,3168.9,14.83077]
[1764799179182,40.8,3169.2,3168.9,0.15777]
[1764799179469,14.4637,3168.9,3168.8,3.2078]
[1764799180975,14.4637,3168.9,3168.4,4.3184369]
[1764799181170,4.20813126,3169.2,3168.4,4.3184369]
[1764799181171,40.8,3168.8,3168.4,4.3184369]
[1764799181370,7.3623,3168.5,3168.4,3.2078]
[1764799182077,40.8,3168.8,3168.4,3.2078]
[1764799182381,7.3623,3168.7,3168.6,1.11255049]
[1764799182772,40.8,3168.8,3168.6,1.11255049]
[1764799183274,7.3623,3168.7,3168.6,1.11255049]
[1764799183481,14.4637,3168.6,3168.5,1.68295223]
[1764799183685,7.3623,3168.2,3168.0,3.2078]
[1764799183870,40.8,3168.8,3168.0,7.6614]
[1764799184075,40.8,3168.8,3168.5,0.83633858]
[1764799184486,7.421,3168.6,3168.4,0.83633858]
[1764799184780,7.421,3168.5,3168.4,0.83874875]
[1764799184981,15.192,3168.5,3168.4,0.83874875]
[1764799185282,15.192,3168.5,3168.2,1.11984937]
[1764799185283,7.421,3168.3,3168.2,1.11984937]
[1764799185482,15.192,3168.3,3168.2,0.00473126]
[1764799186179,15.192,3167.9,3167.8,1.11511811]
[1764799186385,15.19544377,3167.9,3167.8,0.00243108]
[1764799187282,7.421,3167.7,3167.5,4.32764937]
[1764799187482,18.3998,3167.6,3167.5,0.00473126]
[1764799187979,59.1998,3167.6,3167.5,0.00473126]
[1764799188180,7.421,3167.0,3166.8,1.11511811]
[1764799188390,15.192,3166.9,3166.8,0.00226491]
[1764799188783,3.2078,3167.2,3166.8,0.00226491]
[1764799188980,15.192,3166.9,3166.8,0.00226491]
[1764799189474,7.421,3166.9,3166.8,0.00226491]
[1764799189785,15.192,3166.9,3166.8,0.00226491]
[1764799190377,3.21253126,3167.2,3166.8,0.00226491]
[1764799190577,0.00473126,3167.2,3166.8,4.45586491]
[1764799193378,0.00473126,3167.2,3167.1,17.7948]
[1764799193578,0.65,3167.5,3167.1,5.26300696]
[1764799194077,0.65,3167.5,3167.4,7.1692]
[1764799194480,15.842,3167.5,3167.1,3.36566]
[1764799195386,0.65,3167.5,3167.4,7.1692]
[1764799196278,8.071,3167.5,3167.1,3.36566]
[1764799197183,15.192,3167.2,3166.4,2.22824744]
[1764799197386,3.2078,3165.7,3164.5,2.78965015]
[1764799197591,3.2078,3165.3,3165.2,14.587]
[1764799197889,3.2078,3166.2,3165.7,14.587]
[1764799198089,3.2078,3165.8,3165.4,4.4536]
[1764799198287,11.5484,3165.5,3165.4,0.00345637]
[1764799198585,12.22645474,3165.5,3165.4,0.00345637]
[1764799199083,11.5484,3165.4,3164.4,3.2078]
[1764799199389,3.2078,3165.0,3164.4,3.2078]
[1764799199686,44.0078,3165.0,3164.4,3.2078]
[1764799199991,44.0078,3165.0,3164.4,3.2111628]
[1764799200692,11.5484,3164.5,3164.4,0.0033628]
[1764799200989,0.73450385,3164.5,3163.5,3.2078]
[1764799201183,3.2078,3163.6,3162.6,7.6614]
[1764799201385,3.2078,3163.6,3163.0,3.2078]
[1764799201586,40.8,3163.5,3163.0,3.2078]
[1764799201889,40.80407456,3163.5,3163.3,4.45704717]
[1764799202189,40.80407456,3163.5,3163.3,0.00344717]
[1764799202391,0.00407456,3163.5,3163.3,0.00344717]
[1764799202588,0.00407456,3163.5,3163.3,4.45704717]
[1764799202985,3.2078,3164.2,3164.0,4.4536]
[1764799203178,0.00473881,3164.3,3164.0,4.4536]
[1764799203385,3.07599498,3164.6,3164.2,2.182703]
[1764799203686,3.2078,3165.6,3164.5,0.15798]
[1764799203890,3.2078,3166.0,3164.8,3.2078]
[1764799204082,0.00338023,3165.6,3164.8,3.2078]
[1764799204280,0.00338023,3165.6,3164.9,0.00473881]
[1764799204486,0.00473881,3165.5,3164.9,0.00473881]
[1764799204882,3.21253881,3165.5,3164.9,0.00473881]
[1764799205295,3.2078,3165.1,3164.9,0.00473881]
[1764799205494,3.2078,3165.2,3164.9,0.00473881]
[1764799205791,0.00473881,3165.5,3164.9,0.00473881]
[1764799208790,3.2078,3165.2,3164.9,0.00473881]
[1764799212596,0.00473881,3165.5,3164.9,0.00473881]
[1764799213791,0.00473881,3165.5,3165.4,19.6179]
[1764799214194,0.00338023,3165.6,3165.5,15.32424]
[1764799215293,0.00338023,3165.6,3165.5,7.95534]
[1764799215494,0.00338023,3165.6,3165.5,15.32424]
[1764799215797,0.00338023,3165.6,3165.5,7.95534]
[1764799215995,5.7878,3165.5,3165.3,3.2078]
[1764799218195,0.00338023,3165.6,3165.5,15.1663]
[1764799218398,0.00338023,3165.6,3165.5,15.32424]
[1764799218596,0.00338023,3165.6,3165.5,0.15794]
[1764799218899,5.7878,3165.4,3165.0,4.4516]
[1764799219097,5.7878,3165.0,3164.9,0.00473881]
[1764799219293,12.3438122,3165.0,3164.9,0.00473881]
[1764799221291,12.3438122,3165.0,3164.9,7.80213881]
[1764799221292,0.7682122,3165.0,3164.9,7.80213881]
[1764799221496,0.7682122,3165.4,3164.9,7.80213881]
[1764799221697,0.7682122,3165.3,3165.2,7.7974]
[1764799221894,0.7682122,3165.5,3165.2,15.1663]
[1764799222294,0.7682122,3165.5,3165.2,7.7974]
[1764799222594,0.7682122,3165.4,3165.1,3.2078]
[1764799222902,0.7682122,3165.3,3165.1,3.2078]
[1764799223092,6.5560122,3165.2,3165.1,3.2078]
[1764799223297,0.7682122,3165.2,3165.1,11.0052]
[1764799223601,0.7682122,3165.4,3165.1,11.0052]
[1764799223790,0.7682122,3165.3,3165.1,11.0052]
[1764799224088,0.7682122,3165.2,3165.1,11.0052]
[1764799224289,0.7682122,3165.5,3165.1,11.0052]
[1764799224492,0.7682122,3165.4,3165.1,11.0052]
[1764799224699,0.7682122,3165.3,3165.2,15.1663]
[1764799224900,0.00338023,3165.6,3165.5,15.1663]
[1764799225098,0.00338023,3165.6,3165.5,18.53204]
[1764799225503,0.77285652,3165.6,3165.5,18.53204]
[1764799226302,0.77285652,3165.6,3165.5,15.32424]
[1764799227201,5.7878,3165.0,3164.9,0.00473881]
[1764799227505,6.55727629,3165.0,3164.9,0.00473881]
[1764799227699,53.14507629,3165.0,3164.9,0.00473881]
[1764799228205,0.76947629,3165.0,3164.9,15.32900881]
[1764799228602,40.80338023,3165.6,3165.5,7.7974]
[1764799228800,41.55834714,3165.6,3165.5,7.7974]
[1764799229300,0.75834714,3165.6,3165.5,15.1663]
[1764799230902,0.75834714,3165.6,3165.3,0.15794]
[1764799231106,0.00338023,3165.6,3165.4,15.1663]
[1764799231304,0.00473881,3165.9,3165.8,15.1663]
[1764799231505,0.00473881,3165.9,3165.8,18.3741]
[1764799232307,0.00794294,3165.9,3165.8,18.37812799]
[1764799232507,12.44874294,3165.9,3165.8,0.00402799]
[1764799232700,53.24874294,3165.9,3165.8,0.00402799]
[1764799232901,40.80794294,3165.9,3165.8,7.80142799]
[1764799233203,40.80794294,3165.9,3165.8,15.17032799]
[1764799234204,0.00794294,3165.9,3165.8,15.17032799]
[1764799234904,3.8578,3166.5,3166.4,7.7323]
[1764799235097,4.1645033,3166.5,3166.4,15.3947]
[1764799235297,3.8578,3166.5,3166.4,15.3947]
[1764799235505,6.2086,3166.3,3165.8,0.00402799]
[1764799236108,6.21268465,3166.3,3165.8,0.00402799]
[1764799236903,12.4172,3165.9,3165.8,0.00402799]
[1764799237214,15.625,3165.9,3165.8,0.00402799]
[1764799237803,15.93165748,3165.9,3165.3,3.2078]
[1764799238105,15.625,3165.9,3165.3,3.2078]
[1764799239012,3.2078,3166.1,3165.3,3.21115078]
[1764799239212,0.00408465,3166.3,3166.0,7.3326]
[1764799239709,0.00408465,3166.3,3166.2,18.8859]
[1764799239903,0.00408465,3166.3,3166.2,11.9356]
[1764799240103,6.22938465,3166.3,3166.2,4.4451]
[1764799240414,6.22938465,3166.3,3165.7,3.2078]
[1764799240711,0.00408465,3166.3,3166.2,18.8859]
[1764799241510,12.4506,3166.2,3165.3,3.21115078]
[1764799241709,0.00408465,3166.3,3165.8,3.2078]
[1764799242213,0.00408465,3166.3,3166.2,22.0937]
[1764799243111,0.00473881,3166.4,3166.3,14.4408]
[1764799243318,3.881e-05,3166.4,3166.3,14.5987]
[1764799243507,0.65,3166.5,3166.4,14.4408]
[1764799243815,0.64597201,3166.5,3166.4,14.59869]
[1764799244012,0.64597201,3166.5,3166.2,7.6529]
[1764799244013,40.8,3167.2,3166.5,0.15788]
[1764799244202,0.71246019,3167.1,3167.0,7.3326]
[1764799245317,40.80293602,3167.2,3167.0,7.3326]
[1764799245614,0.00293602,3167.2,3167.0,7.3326]
[1764799245912,0.71479651,3167.2,3167.0,7.3326]
[1764799246813,0.71479651,3167.2,3167.1,7.3326]
[1764799247017,0.71479651,3167.2,3167.1,14.4408]
[1764799247208,0.00293602,3167.2,3167.1,14.4408]
[1764799247909,6.88303602,3167.2,3166.8,4.60297]
[1764799248302,6.8801,3166.9,3166.8,4.4451]
[1764799248514,6.8801,3166.8,3166.7,0.00473881]
[1764799248716,16.968,3166.8,3166.7,0.00473881]
[1764799248911,13.7602,3166.1,3166.0,10.0]
[1764799249104,16.968,3166.1,3166.0,10.0]
[1764799249308,10.0879,3166.1,3166.0,10.0]
[1764799249516,50.8879,3166.1,3166.0,10.0]
[1764799249911,10.0879,3166.1,3166.0,10.0]
[1764799250119,0.00293602,3167.2,3166.0,24.4408]
[1764799250317,12.928,3167.1,3166.2,7.6529]
[1764799250513,1.00713298,3167.2,3166.6,3.2078]
[1764799250514,1.00419696,3167.0,3166.6,3.2078]
[1764799250716,0.00293602,3167.2,3166.6,3.2078]
[1764799251121,0.70141169,3167.2,3166.6,3.2078]
[1764799251420,0.69847567,3167.1,3166.6,3.2078]
[1764799251619,0.69847567,3167.0,3166.6,3.2078]
[1764799251822,0.00293602,3167.2,3166.6,3.2078]
[1764799252220,0.70158765,3167.2,3166.6,3.36568]
[1764799252420,0.00293602,3167.2,3167.1,7.3326]
[1764799253022,40.80293602,3167.2,3167.1,14.4408]
[1764799254131,0.00293602,3167.2,3167.1,14.4408]
[1764799256826,6.8801,3167.1,3167.0,3.2078]
[1764799257134,0.00293602,3167.2,3166.8,11.7777]
[1764799257324,6.8801,3166.9,3166.8,11.7777]
[1764799257629,13.7602,3166.9,3166.5,7.6529]
[1764799258330,6.8801,3166.6,3166.5,7.6529]
[1764799258630,6.8801,3166.6,3166.5,4.4451]
[1764799258828,13.7602,3166.6,3166.1,3.3657]
[1764799259029,13.7602,3166.1,3165.7,0.00473881]
[1764799259231,6.8801,3166.1,3166.0,13.2078]
[1764799259430,1.9338,3167.0,3166.0,24.9855]
[1764799259733,1.0053438,3166.9,3166.0,24.9855]
[1764799259928,1.0053438,3166.8,3166.0,24.9855]
[1764799260128,41.4991377,3166.7,3166.0,24.9855]
[1764799260323,0.6991377,3166.6,3166.5,18.8859]
[1764799260519,40.8,3166.7,3166.5,18.8859]
[1764799260520,40.8,3166.7,3166.6,14.4408]
[1764799260726,13.7602,3166.6,3166.5,3.2078]
[1764799261532,6.8801,3166.4,3166.3,0.15789]
[1764799261925,7.57947419,3166.4,3166.0,14.4451]
[1764799262128,6.8801,3166.1,3166.0,14.4451]
[1764799262637,13.7602,3166.1,3166.0,10.0]
[1764799264424,13.7602,3166.1,3165.7,0.00473881]
[1764799264425,6.8258,3165.8,3165.7,0.00473881]
[1764799264633,16.36978491,3165.8,3165.7,0.00473881]
[1764799265025,57.16978491,3165.8,3165.7,0.00473881]
[1764799265420,57.16978491,3165.8,3165.3,0.00335078]
[1764799265625,10.6606,3165.4,3165.3,0.00335078]
[1764799265825,24.24109086,3165.4,3165.3,0.00335078]
[1764799266426,23.5416,3165.4,3165.3,0.00335078]
[1764799266626,14.87345809,3165.4,3165.3,0.00335078]
[1764799266831,27.44933781,3165.4,3165.3,0.00335078]
[1764799267226,26.7504,3165.4,3165.3,0.00335078]
[1764799268033,27.44943654,3165.4,3165.3,0.00335078]
[1764799268637,10.6606,3165.1,3164.5,4.4451]
[1764799268933,0.69917193,3165.0,3164.9,15.1716]
[1764799269125,10.6538,3165.0,3164.5,4.4451]
[1764799269524,10.6538,3165.0,3164.5,4.44801939]
[1764799269729,10.6538,3164.6,3164.5,0.00291939]
[1764799270029,10.65620163,3164.6,3164.5,0.00291939]
[1764799270227,3.2078,3166.2,3165.6,15.1716]
[1764799270428,5.3293,3165.6,3165.5,4.3342]
[1764799270627,10.6586,3165.6,3165.1,3.2078]
[1764799270829,40.8,3165.5,3165.1,3.2078]
[1764799271231,0.0033477,3165.5,3165.4,7.8088]
[1764799271623,0.0033477,3165.5,3165.4,15.1716]
[1764799271831,0.0033477,3165.5,3164.4,0.00473881]
[1764799271832,0.9233,3165.0,3163.1,3.87801192]
[1764799272028,3.6542,3163.7,3163.2,2.23436835]
[1764799272331,3.2078,3163.6,3163.5,19.5058]
[1764799272634,3.2078,3163.6,3163.5,22.27422762]
[1764799272830,3.2078,3163.6,3163.5,25.48468136]
[1764799273936,3.2078,3163.6,3163.5,18.12188136]
[1764799274232,3.22020651,3163.6,3163.5,18.12188136]
[1764799274748,0.00473881,3163.9,3163.5,31.48468136]
[1764799275035,3.2078,3165.0,3164.4,19.5058]
[1764799275435,44.0078,3165.0,3164.4,19.5058]
[1764799275734,40.8,3165.0,3164.4,19.5058]
[1764799275936,40.80473881,3165.0,3164.4,19.51053881]
[1764799276331,40.80473881,3165.0,3164.4,0.00473881]
[1764799276533,6.8868,3164.0,3163.9,3.2078]
[1764799276731,13.7736,3163.6,3163.1,3.2078]
[1764799277132,54.5736,3163.6,3163.1,3.2078]
[1764799277335,3.2078,3164.0,3163.1,3.36585]
[1764799277735,3.21253881,3165.0,3163.9,3.2078]
[1764799277932,3.2078,3164.6,3164.0,4.3342]
[1764799278137,3.2078,3164.2,3164.0,4.3342]
[1764799278436,0.00473881,3165.0,3164.1,15.1716]
[1764799278636,0.00473881,3165.0,3164.5,3.2078]
[1764799279336,0.00473881,3165.0,3164.9,7.8088]
[1764799279536,0.00473881,3165.0,3164.9,15.1716]
[1764799279743,0.00473881,3165.0,3164.9,18.3794]
[1764799280137,0.00473881,3165.0,3164.9,18.53737]
[1764799280336,3.2078,3165.6,3165.4,12.143]
[1764799280637,3.2078,3165.6,3165.4,19.50914557]
[1764799281240,0.00473881,3165.8,3165.4,19.50914557]
[1764799281436,0.00473881,3165.8,3165.4,19.66708557]
[1764799281643,3.2078,3166.5,3165.4,19.66708557]
[1764799281644,3.2078,3166.5,3165.7,15.1716]
[1764799281942,3.2078,3166.5,3165.9,3.2078]
[1764799282640,40.8,3166.4,3165.9,3.2078]
[1764799282949,40.8,3166.4,3166.3,18.3794]
[1764799283136,0.00746675,3166.5,3166.3,18.3794]
[1764799283337,0.00746675,3166.5,3166.4,7.8088]
[1764799283642,40.80746675,3166.5,3166.4,7.8088]
[1764799284242,0.00746675,3166.5,3166.4,7.8088]
[1764799284436,0.00746675,3166.5,3166.4,15.1716]
[1764799287032,0.00746675,3166.5,3166.3,3.2078]
[1764799287234,6.8901,3166.4,3166.3,3.2078]
[1764799287733,0.00746675,3166.5,3166.3,3.2078]
[1764799288438,13.7802,3166.4,3166.3,3.2078]
[1764799288746,3.97771263,3166.4,3165.6,3.2078]
[1764799288939,3.2078,3166.4,3165.6,3.2078]
[1764799292551,3.2078,3166.4,3166.3,15.1716]
[1764799293043,0.00746675,3166.5,3166.4,15.1716]
[1764799293950,0.00746675,3166.5,3166.4,7.8088]
[1764799294150,6.92716675,3166.5,3166.2,4.4921]
[1764799294351,6.9197,3166.3,3166.2,4.4921]
[1764799295642,0.00746675,3166.5,3166.2,11.8637]
[1764799297650,6.9197,3166.3,3166.2,11.7058]
[1764799297850,6.9197,3166.3,3166.2,4.3342]
[1764799298255,13.8394,3166.3,3166.2,4.3342]
[1764799298453,13.8394,3166.3,3165.7,3.2078]
[1764799299153,3.2078,3166.4,3165.7,3.2078]
[1764799299353,0.76989975,3166.3,3165.7,3.2078]
[1764799299745,13.9002,3165.8,3165.7,3.2078]
[1764799300852,40.8,3166.2,3165.7,10.7861]
[1764799301156,0.77007226,3166.1,3165.7,10.7861]
[1764799302049,40.8,3166.2,3165.7,10.7861]
[1764799302355,0.77055399,3166.1,3165.7,10.7861]
[1764799303051,40.8,3166.2,3166.1,15.2448]
[1764799303350,2.17428113,3167.4,3166.1,15.2448]
[1764799303351,4.3941,3169.0,3168.2,7.6665]
[1764799303548,0.00746675,3169.1,3169.0,7.5783]
[1764799303750,3.2078,3170.1,3168.9,3.2078]
[1764799303943,0.15764,3171.4,3168.6,2.7329]
[1764799303944,0.00746675,3169.9,3169.0,1.8954832]
[1764799304252,40.8,3170.4,3169.8,3.2078]
[1764799304452,40.80473126,3170.4,3170.3,3.2078]
[1764799305252,4.3941,3170.3,3169.9,3.2078]
[1764799306351,14.9708,3170.0,3169.9,3.2078]
[1764799306651,4.3941,3170.3,3169.9,3.2078]
[1764799307448,7.8245,3170.0,3169.9,3.2078]
[1764799307953,19.3649,3169.6,3169.5,3.2078]
[1764799308457,12.2186,3169.6,3169.5,3.2078]
[1764799309050,3.2078,3171.8,3170.3,2.199]
[1764799309254,3.2078,3171.8,3170.6,3.2078]
[1764799309549,40.8,3171.5,3171.0,3.2078]
[1764799309950,3.2078,3171.4,3171.0,3.2078]
[1764799310153,3.21091403,3171.4,3171.0,3.2078]
[1764799310355,0.00311403,3171.4,3171.0,3.2078]
[1764799310749,40.8,3171.3,3171.0,3.2078]
[1764799311958,4.3941,3171.0,3170.9,0.00473126]
[1764799313258,4.3941,3171.0,3170.6,3.07391604]
[1764799313459,3.2078,3170.8,3170.1,3.2078]
[1764799313655,44.0078,3170.9,3170.1,3.2078]
[1764799313856,4.3941,3170.3,3170.1,3.2078]
[1764799314052,2.23052903,3173.0,3171.0,1.7161]
[1764799314256,2.72479304,3173.5,3171.0,1.7161]
[1764799314257,2.23052903,3173.8,3172.6,3.2078]
[1764799314548,3.2078,3173.9,3173.1,3.2078]
[1764799314754,6.2658,3175.6,3173.6,2.9046]
[1764799315053,1.8954832,3176.4,3174.3,3.2078]
[1764799315054,3.2078,3174.8,3174.3,3.2078]
[1764799315353,0.23793091,3176.4,3174.7,5.1032832]
[1764799315354,3.2078,3176.4,3174.7,5.1032832]
[1764799315546,3.2078,3175.8,3175.1,3.2078]
[1764799315748,3.2078,3175.8,3174.4,2.9046]
[1764799315749,0.00472358,3175.9,3175.5,3.2078]
[1764799316260,0.00472358,3175.9,3174.4,2.9046]
[1764799316261,0.00472358,3175.9,3175.1,3.2078]
[1764799316460,13.151,3175.8,3174.7,3.2078]
[1764799316660,3.2078,3175.5,3174.7,3.2078]
[1764799316857,3.2078,3178.2,3175.6,0.15743]
[1764799317048,4.3941,3177.9,3177.4,3.2078]
[1764799317253,4.3941,3177.9,3176.7,3.2078]
[1764799317254,4.3941,3177.0,3176.7,3.2078]
[1764799317456,7.6019,3177.0,3176.2,3.2078]
[1764799317754,4.3941,3177.0,3176.2,3.2078]
[1764799317956,0.00472358,3176.9,3176.3,0.00472358]
[1764799318152,3.2078,3176.8,3176.3,0.00472358]
[1764799318759,0.00472358,3176.9,3176.3,0.00472358]
[1764799318953,3.2078,3176.7,3176.3,0.00472358]
[1764799319454,3.2078,3176.8,3176.3,0.00472358]
[1764799319668,14.5818,3176.8,3176.2,3.21100025]
[1764799320258,3.2078,3176.6,3176.2,0.00320025]
[1764799320561,0.0027932,3177.0,3176.5,3.2078]
[1764799320861,4.3968932,3177.0,3176.5,3.2078]
[1764799321064,0.02530461,3176.8,3176.2,0.00320025]
[1764799321259,0.02530461,3176.8,3176.7,3.2078]
[1764799321455,7.4581,3178.4,3176.7,3.2078]
[1764799321652,7.4581,3178.4,3178.2,3.1919568]
[1764799321858,7.4581,3178.4,3177.8,3.2078]
[1764799321859,1.8954832,3178.3,3177.8,3.2078]
[1764799322058,1.8954832,3178.3,3177.8,3.18249539]
[1764799322059,4.3941,3177.9,3177.8,3.18249539]
[1764799322465,51.19648925,3177.9,3177.0,3.2078]
[1764799322661,0.00312888,3177.5,3177.0,3.2078]
[1764799322959,0.01162999,3177.3,3177.0,3.2078]
[1764799323353,22.46642999,3177.3,3176.6,3.2078]
[1764799323555,4.6969,3177.0,3176.6,3.2078]
[1764799324269,0.01162999,3176.8,3176.6,3.2078]
[1764799324676,6.01162999,3176.8,3176.4,0.00472358]
[1764799325159,4.6969,3177.0,3176.4,0.00472358]
[1764799325160,0.01162999,3176.6,3176.4,0.00472358]
[1764799325665,8.17797287,3176.6,3176.4,2.358e-05]
[1764799325966,8.33536287,3176.6,3176.4,2.358e-05]
[1764799326158,0.01162999,3176.5,3176.4,2.358e-05]
[1764799326461,0.01162999,3176.5,3176.2,2.383e-05]
[1764799326661,3.2078,3176.4,3176.2,2.383e-05]
[1764799326856,54.03,3176.3,3176.2,2.383e-05]
[1764799327256,4.6969,3175.2,3174.9,3.2078]
[1764799327457,4.6969,3175.2,3172.9,0.15756]
[1764799327458,3.2078,3175.1,3174.7,0.00472358]
[1764799327658,0.02557777,3174.9,3174.7,0.00472358]
[1764799328059,0.03952555,3174.8,3174.7,0.00472358]
[1764799328258,0.04328268,3174.8,3174.7,3.21500224]
[1764799328465,0.05723046,3174.8,3174.7,3.21500224]
[1764799328766,40.85723046,3174.8,3174.7,3.21500224]
[1764799329457,40.85723046,3174.8,3174.7,0.00720224]
[1764799331356,40.85723046,3174.8,3174.7,2.24e-06]
[1764799332463,40.85723046,3174.8,3174.7,3.20780224]
[1764799333970,44.22250046,3174.8,3174.4,1e-08]
[1764799334266,40.85723046,3174.8,3174.5,3.2078]
[1764799334565,0.06537559,3174.7,3174.5,3.2078]
[1764799334769,0.06537559,3174.7,3174.5,3.21064477]
[1764799334970,0.07727785,3174.6,3174.5,3.21064477]
[1764799335266,0.08918011,3174.6,3174.5,3.21064477]
[1764799335766,0.08918011,3174.6,3174.5,0.00284477]
[1764799336363,0.08918011,3174.6,3174.5,3.21064477]
[1764799338070,0.04095869,3174.6,3174.5,9.21064477]
[1764799338390,0.00472358,3175.4,3174.6,6.0]
[1764799338673,0.00472358,3175.4,3175.3,3.2078]
[1764799339067,40.80472358,3175.4,3175.3,3.2078]
[1764799339267,40.80719584,3175.4,3175.3,3.2078]
[1764799341567,53.97019584,3175.4,3175.3,3.2078]
[1764799342365,0.00719584,3175.4,3175.3,3.2078]
[1764799342570,8.177,3176.3,3175.3,9.2078]
[1764799342775,0.31575255,3176.2,3175.8,3.2078]
[1764799342974,40.8,3176.1,3175.8,3.2078]
[1764799343177,0.31635051,3176.0,3175.8,3.2078]
[1764799343569,0.31932973,3176.0,3175.8,3.2078]
[1764799344479,0.02359593,3175.9,3175.8,3.2078]
[1764799344775,0.35593276,3175.9,3175.8,3.2078]
[1764799344980,0.36727651,3175.9,3175.8,3.2078]
[1764799346280,0.36727651,3175.9,3175.4,3.2078]
[1764799346581,0.31635051,3175.8,3175.4,3.2078]
[1764799347074,0.050926,3175.6,3175.4,3.2078]
[1764799348084,0.050926,3175.5,3175.4,3.2078]
[1764799348977,15.44005335,3175.5,3175.4,3.2078]
[1764799349578,15.0717,3174.6,3174.5,0.00284477]
[1764799349782,28.50612735,3174.6,3174.5,0.00284477]
[1764799349980,69.30612735,3174.6,3174.5,0.00284477]
[1764799350283,7.204,3174.2,3174.1,3.2078]
[1764799350578,7.58653238,3174.2,3174.1,3.2078]
[1764799350777,7.58653238,3174.2,3173.4,0.9315]
[1764799350778,15.45423238,3174.2,3173.7,3.2078]
[1764799350982,53.917,3174.6,3173.3,3.2078]
[1764799350983,3.28708406,3174.0,3173.3,3.2078]
[1764799351184,0.31742735,3173.9,3173.3,3.2078]
[1764799351381,0.09346309,3173.6,3173.3,3.215027]
[1764799351582,13.42642735,3173.5,3173.3,3.215027]
[1764799351786,0.31742735,3173.4,3173.3,0.007227]
[1764799352282,0.41089044,3173.4,3173.3,0.007227]
[1764799352980,41.21089044,3173.4,3173.3,0.007227]
[1764799354582,41.21089044,3173.4,3173.3,10.492627]
[1764799354888,0.00319044,3173.6,3173.5,14.3791]
[1764799355087,9.604,3174.4,3173.8,14.3791]
[1764799355284,40.8,3174.3,3174.1,3.2078]
[1764799355588,13.095,3174.2,3173.3,0.007227]
[1764799355988,3.2078,3174.0,3173.3,0.007227]
[1764799356291,3.2078,3173.6,3173.3,0.007227]
[1764799356489,13.094,3173.5,3173.3,0.007227]
[1764799357197,0.0116963,3173.4,3173.3,0.007227]
[1764799357888,40.8233926,3173.4,3173.3,0.007227]
[1764799358289,40.8350889,3173.4,3173.3,0.007227]
[1764799358592,40.84331639,3173.4,3173.3,0.007227]
[1764799358990,40.84331639,3173.4,3173.3,7.190327]
[1764799359592,40.84331639,3173.4,3173.3,14.386327]
[1764799359788,0.00335514,3174.2,3174.0,14.3791]
[1764799359993,0.00335514,3174.2,3174.0,17.5869]
[1764799360194,40.80335514,3174.2,3174.0,17.5869]
[1764799361092,40.80335514,3174.2,3174.0,3.2078]
[1764799361597,6.33568783,3175.2,3174.0,3.2078]
[1764799361598,3.2078,3175.0,3174.0,3.2078]
[1764799361888,2.72479304,3176.4,3174.9,3.2078]
[1764799362084,4.6131,3176.6,3176.0,3.2078]
[1764799362085,53.923,3176.3,3176.0,3.2078]
[1764799362684,53.92636564,3176.3,3176.0,3.21135802]
[1764799363280,40.80336564,3176.3,3176.0,3.21135802]
[1764799364102,0.01603867,3176.2,3176.0,0.00355802]
[1764799364494,0.03207734,3176.1,3176.0,0.00355802]
[1764799364697,0.04331639,3176.1,3176.0,0.00355802]
[1764799365200,4.4871,3175.9,3175.6,3.2078]
[1764799365494,13.117,3175.8,3175.6,3.2078]
[1764799366003,0.04331639,3175.7,3175.6,3.2078]
[1764799366192,0.04331639,3175.7,3175.6,3.21074008]
[1764799366700,40.84331639,3175.7,3175.6,3.21074008]
[1764799367201,53.94631639,3175.7,3175.6,3.21074008]
[1764799367693,40.84331639,3175.7,3175.6,3.21074008]
[1764799368001,53.94531639,3175.7,3175.6,3.21074008]
[1764799369596,40.84331639,3175.7,3175.6,3.21074008]
[1764799369803,0.04331639,3175.7,3175.6,3.21074008]
[1764799370304,0.05757134,3175.7,3175.6,3.21074008]
[1764799370702,0.07182629,3175.7,3175.6,3.21074008]
[1764799376399,7.72732629,3175.7,3175.6,3.21074008]
[1764799377113,40.8,3176.1,3176.0,15.289]
[1764799377418,13.05436564,3176.3,3176.2,15.289]
[1764799377706,40.80336564,3176.3,3176.2,15.289]
[1764799377915,0.00336564,3176.3,3176.2,15.289]
[1764799378513,0.00336564,3176.3,3173.2,2.20945137]
[1764799378514,3.0358,3175.2,3173.2,2.20945137]
[1764799378811,3.2078,3173.8,3173.1,4.3873]
[1764799379018,50.0538,3173.8,3173.2,5.00890722]
[1764799379206,0.76054439,3173.7,3173.3,3.2078]
[1764799379404,3.2078,3174.8,3173.3,3.21037513]
[1764799379607,0.31505304,3174.7,3174.1,3.1961594]